{"text_format":"1","workbook":"xlsx","n_sheets":11,"sheets":["ADD","راس المال","مورد","اجور","ضيافة","مواصلات","كرنات","اصلاحات","عملاء","تكاليف","الصندوق"],"not_rendered":{"charts":0,"images":1,"macros":1,"external_links":0,"defined_names":0,"comments":0,"pivot_tables":0},"unopened":[],"bounds":{"document_bytes":16777216,"sheet_cells":100000,"rows_first":2000,"rows_last":500,"rows_between":2000,"halvings":0,"cell_chars":16384,"cell_head_chars":4096},"cells_cut":0,"cells_raw":0,"read":"whole","date_system":"1900"}

{"sheet":"ADD","index":0,"n_rows":10,"n_cols":13,"rows_kept":10,"cut":false,"hidden":false,"merged":[]}
[null,null,null,null,null,null,null,null,null,null,null,null,"كود المحاسبي"]
[null,null,null,null,null,null,null,null,null,null,null,null,"راس المال"]
[null,null,"اضافة كود المحاسبي ",null,null,null,null,null,null,null,null,null,"مورد"]
[null,null,null,null,null,null,null,null,null,null,null,null,"اجور"]
[null,null,"الذهاب الى صفحة عميل",null,null,null,null,null,null,null,null,null,"ضيافة"]
[null,null,null,null,null,null,null,null,null,null,null,null,"مواصلات للموقع"]
[null,null,null,null,null,null,null,null,null,null,null,null,"كرتات"]
[null,null,null,null,null,null,null,null,null,null,null,null,"اصلاحات"]
[null,null,null,null,null,null,null,null,null,null,null,null,"عملاء"]
[null,null,null,null,null,null,null,null,null,null,null,null,"تكاليف"]

{"sheet":"راس المال","index":1,"n_rows":3,"n_cols":9,"rows_kept":3,"cut":false,"hidden":false,"merged":[]}
[]
[]
[null,"التاريخ","الاسم ","البيان","المستخلص","مدين","دائن","الرصيد","الحركة"]

{"sheet":"مورد","index":2,"n_rows":3,"n_cols":9,"rows_kept":3,"cut":false,"hidden":false,"merged":[]}
[]
[]
[null,"التاريخ","الاسم ","البيان","المستخلص","مدين","دائن","الرصيد","الحركة"]

{"sheet":"اجور","index":3,"n_rows":3,"n_cols":9,"rows_kept":3,"cut":false,"hidden":false,"merged":[]}
[]
[]
[null,"التاريخ","الاسم ","البيان","المستخلص","مدين","دائن","الرصيد","الحركة"]

{"sheet":"ضيافة","index":4,"n_rows":3,"n_cols":9,"rows_kept":3,"cut":false,"hidden":false,"merged":[]}
[]
[]
[null,"التاريخ","الاسم ","البيان","المستخلص","مدين","دائن","الرصيد","الحركة"]

{"sheet":"مواصلات","index":5,"n_rows":3,"n_cols":9,"rows_kept":3,"cut":false,"hidden":false,"merged":[]}
[]
[]
[null,"التاريخ","الاسم ","البيان","المستخلص","مدين","دائن","الرصيد","الحركة"]

{"sheet":"كرنات","index":6,"n_rows":3,"n_cols":9,"rows_kept":3,"cut":false,"hidden":false,"merged":[]}
[]
[]
[null,"التاريخ","الاسم ","البيان","المستخلص","مدين","دائن","الرصيد","الحركة"]

{"sheet":"اصلاحات","index":7,"n_rows":3,"n_cols":9,"rows_kept":3,"cut":false,"hidden":false,"merged":[]}
[]
[]
[null,"التاريخ","الاسم ","البيان","المستخلص","مدين","دائن","الرصيد","الحركة"]

{"sheet":"عملاء","index":8,"n_rows":3,"n_cols":9,"rows_kept":3,"cut":false,"hidden":false,"merged":[]}
[]
[]
[null,"التاريخ","الاسم ","البيان","المستخلص","مدين","دائن","الرصيد","الحركة"]

{"sheet":"تكاليف","index":9,"n_rows":3,"n_cols":9,"rows_kept":3,"cut":false,"hidden":false,"merged":[]}
[]
[]
[null,"التاريخ","الاسم ","البيان","المستخلص","مدين","دائن","الرصيد","الحركة"]

{"sheet":"الصندوق","index":10,"n_rows":29,"n_cols":11,"rows_kept":29,"cut":false,"hidden":false,"merged":[]}
[]
[]
[null,"م","التاريخ","الاسم ","البيان","المستخلص","مدين","دائن","الرصيد","الحركة","كود المحاسبى"]
[null,1,"2019-08-01","الحاج رضا","توريد للخزينة",null,null,1000,{"$f":"I2+H4-G4","v":1000},"ايداع","راس المال"]
[null,2,"2019-08-02","الحاج رضا","توريد للخزينة",null,null,10000,{"$f":"+I4+H5-G5","v":11000},"ايداع","راس المال"]
[null,3,"2019-08-03","محمود","صرف دفعة",null,500,null,{"$f":"+I5+H6-G6","v":10500},"صرف","مورد"]
[null,4,"2019-08-04","محمود","مستخلص",1000,null,null,10500,"مستخلص","مورد"]
[null,5,"2019-08-05","مصطفى","مستخلص",2000,null,null,10500,"مستخلص","مورد"]
[null,6,"2019-08-06","مصطفى","صرف دفعة",null,300,null,10200,"صرف","مورد"]
[null,7,"2019-08-07","مصطفى","صرف دفعة",null,600,null,9600,"صرف","مورد"]
[null,8,"2019-08-08","الحاج رضا","صرف شخصى",null,4000,null,5600,"صرف","راس المال"]
[null,9,"2019-08-09","محمد","مرتب",5000,null,null,5600,"راتب","اجور"]
[null,10,"2019-08-10","محمد","صرف دفعة",null,5000,null,600,"صرف","اجور"]
[null,11,"2019-08-11","مصروفات","شراء شاى وسكر",null,200,null,{"$f":"+I13+H14-G14","v":400},"صرف","ضيافة"]
[null,12,"2019-08-12","مصروفات","مواصلات",null,100,null,300,"صرف","مواصلات للموقع"]
[null,13,"2019-08-13","مصروفات","كرتات طريق",null,50,null,250,"صرف","كرتات"]
[null,14,"2019-08-14","سيارة 2156","صيانة سيارة",null,250,null,0,"صرف","اصلاحات"]
[null,15,"2019-08-15","سيارة 2156","فواتير الاصلاح",500,null,null,0,"مستخلص","اصلاحات"]
[null,16,"2019-08-16","عاشور","مبيعات طماطم",null,null,6000,6000,"مبيعات","عملاء"]
[null,17,"2019-08-17","صلاح","مبيعات طماطم",null,null,10000,16000,"مبيعات","عملاء"]
[null,18,"2019-08-18","عاشور","مبيعات طماطم",null,null,5000,21000,"مبيعات","عملاء"]
[null,19,"2019-08-19","الحاج رضا","صرف شخصى",null,15000,null,6000,"صرف","راس المال"]
[null,20,null,null,null,null,null,null,6000]
[null,21,null,null,null,null,null,null,6000]
[null,22,null,null,null,null,null,null,6000]
[null,23,null,null,null,null,null,null,6000]
[null,24,null,null,null,null,null,null,6000]
[null,25,null,null,null,null,null,null,6000]
[null,26,null,null,null,null,null,null,6000]